bitfinex/quotes_ETHUSD_20250930
["timestamp","ask_amount","ask_price","bid_price","bid_amount"]
[1759241371286,2.41423432,4142.1,4142.0,0.002]
[1759241371675,2.41419582,4142.2,4142.0,0.002]
[1759241371879,2.4,4143.0,4142.0,0.002]
[1759241372112,2.41423432,4142.1,4142.0,0.002]
[1759241372281,4.81374589,4143.0,4142.0,0.0068]
[1759241372476,2.41374992,4143.0,4142.0,0.0068]
[1759241372698,0.792,4143.9,4142.0,0.0068]
[1759241372699,1.27545214,4144.1,4142.1,0.02414234]
[1759241372907,2.4137599,4143.0,4142.2,2.41413228]
[1759241373211,2.4,4143.7,4142.2,2.41413228]
[1759241373385,2.41360214,4143.2,4142.2,2.41413228]
[1759241373586,2.41360214,4143.2,4142.0,0.0068]
[1759241373587,0.001,4143.8,4142.6,2.41393799]
[1759241373806,2.41340907,4143.6,4142.7,2.904]
[1759241374009,2.41330212,4143.7,4142.0,0.0068]
[1759241374308,0.001,4143.8,4142.9,2.41371883]
[1759241374509,0.001,4143.8,4142.9,2.41372435]
[1759241374819,2.41332693,4143.7,4143.0,2.41370694]
[1759241375009,0.001,4143.8,4143.0,0.77315826]
[1759241375308,0.001,4143.8,4143.6,2.41335613]
[1759241375513,0.001,4143.8,4143.7,2.904]
[1759241375722,0.001,4143.8,4143.7,5.34143514]
[1759241375889,0.001,4143.8,4143.7,5.31730212]
[1759241376083,0.001,4143.8,4143.7,2.41330212]
[1759241376432,0.001,4143.8,4143.7,0.48266822]
[1759241376611,0.001,4143.8,4143.7,3.38666822]
[1759241377226,0.001,4143.8,4143.7,5.79997034]
[1759241378084,0.001,4143.8,4143.7,2.89597034]
[1759241378437,0.001,4143.8,4143.7,5.79997034]
[1759241378722,0.001,4143.8,4143.7,5.92077034]
[1759241381220,0.001,4143.8,4143.7,8.99197034]
[1759241383518,0.001,4143.8,4143.7,6.08797034]
[1759241384347,0.001,4143.8,4143.7,8.98997034]
[1759241385353,0.001,4143.8,4143.7,6.08797034]
[1759241385559,0.001,4143.8,4143.7,8.98997034]
[1759241386572,0.001,4143.8,4143.7,6.08797034]
[1759241386774,0.001,4143.8,4143.7,8.98997034]
[1759241387151,0.001,4143.8,4143.7,2.41330212]
[1759241387379,0.001,4143.8,4143.7,5.31530212]
[1759241390350,0.001,4143.8,4143.7,7.71530212]
[1759241390579,0.001,4143.8,4143.7,8.50730212]
[1759241391274,0.001,4143.8,4143.7,8.62810212]
[1759241391576,0.001,4143.8,4143.7,9.78001406]
[1759241394348,0.001,4143.8,4143.7,6.08601406]
[1759241394588,0.001,4143.8,4143.7,7.83510212]
[1759241397095,0.001,4143.8,4143.7,4.93410212]
[1759241397260,0.001,4143.8,4143.7,7.83410212]
[1759241398953,0.001,4143.8,4143.7,5.43410212]
[1759241399160,0.001,4143.8,4143.7,2.53410212]
[1759241399689,0.001,4143.8,4143.7,5.43410212]
[1759241399915,0.001,4143.8,4143.7,6.26661406]
[1759241400393,0.001,4143.8,4143.3,0.002]
[1759241400960,0.001,4143.8,4143.4,2.9]
[1759241401270,0.001,4143.8,4143.7,2.41330212]
[1759241401478,0.001,4143.8,4143.7,5.31330212]
[1759241401667,0.001,4143.8,4143.7,7.71330212]
[1759241401870,0.001,4143.8,4143.7,8.72597419]
[1759241402369,0.001,4143.8,4143.7,9.51797419]
[1759241402567,0.001,4143.8,4143.7,6.32597419]
[1759241403262,0.001,4143.8,4143.3,0.002]
[1759241403458,0.001,4143.8,4143.7,2.41330212]
[1759241403674,0.001,4143.8,4143.7,5.31230212]
[1759241404998,0.001,4143.8,4143.3,0.002]
[1759241405398,0.001,4143.8,4143.4,2.899]
[1759241406120,0.001,4143.8,4143.4,5.31246872]
[1759241406325,0.001,4143.8,4143.7,2.41330212]
[1759241406502,0.001,4143.8,4143.7,5.31230212]
[1759241406705,0.001,4143.8,4143.4,0.77280518]
[1759241406891,0.001,4143.8,4143.5,2.899]
[1759241407085,0.001,4143.8,4143.6,2.899]
[1759241407452,0.001,4143.8,4143.3,0.002]
[1759241407453,2.41427843,4143.8,4143.7,2.899]
[1759241407606,0.001,4143.8,4143.7,2.899]
[1759241408118,2.41424388,4143.8,4143.7,2.899]
[1759241408576,2.41347685,4143.4,4143.3,0.002]
[1759241408777,2.41347685,4143.4,4143.3,2.901]
[1759241409510,2.41345124,4143.5,4143.3,2.901]
[1759241409683,2.41336036,4143.6,4143.3,2.901]
[1759241409884,2.41336036,4143.6,4143.3,0.002]
[1759241410184,2.41339036,4143.6,4143.4,2.899]
[1759241410512,2.4134186,4143.5,4143.4,2.899]
[1759241410730,0.001,4143.8,4143.4,2.899]
[1759241410884,2.41337618,4143.6,4143.4,2.899]
[1759241411079,0.001,4143.8,4143.4,2.899]
[1759241411313,2.41429706,4143.8,4143.5,0.1208]
[1759241411702,0.001,4143.8,4143.5,0.1208]
[1759241412221,2.41424594,4143.8,4143.5,0.1208]
[1759241412435,2.41425587,4143.8,4143.5,0.1208]
[1759241412797,0.001,4143.8,4143.5,0.1208]
[1759241413221,2.41330884,4143.7,4143.5,0.1208]
[1759241413499,2.4134186,4143.5,4143.3,0.002]
[1759241413712,2.4134186,4143.5,4143.4,2.899]
[1759241414012,2.4134186,4143.5,4143.3,0.1228]
[1759241414213,0.001,4143.8,4143.3,3.0218]
[1759241415117,2.41347685,4143.4,4143.3,3.0218]
[1759241415295,2.41332082,4143.7,4143.3,3.0218]
[1759241415496,0.001,4143.8,4143.3,3.0218]
[1759241415696,2.41330212,4143.7,4143.3,0.1228]
[1759241415924,4.81426059,4143.8,4143.3,0.002]
[1759241416230,2.53427685,4143.4,4143.3,0.002]
[1759241416418,4.93427685,4143.4,4143.3,0.002]
[1759241416606,5.72627685,4143.4,4143.3,0.002]
[1759241417410,2.41370987,4143.0,4142.9,1e-08]
[1759241417610,5.72650987,4143.0,4142.9,1e-08]
[1759241418131,6.23949401,4143.0,4142.9,1e-08]
[1759241419139,6.36155105,4143.0,4142.9,1e-08]
[1759241421903,4.93450987,4143.0,4142.9,1e-08]
[1759241422105,5.05226964,4143.0,4142.9,1e-08]
[1759241422305,5.84426964,4143.0,4142.9,1e-08]
[1759241422748,6.11637494,4143.0,4142.9,1e-08]
[1759241423053,6.23796963,4143.0,4142.9,1e-08]
[1759241423257,5.72730456,4143.0,4142.9,1e-08]
[1759241423463,6.23796963,4143.0,4142.9,1e-08]
[1759241425659,6.59149532,4143.0,4142.9,1e-08]
[1759241425852,6.23796963,4143.0,4142.9,1e-08]
[1759241426043,3.2060012,4142.5,4142.0,0.0068]
[1759241426246,3.2060012,4142.5,4141.5,0.002]
[1759241426247,2.41452578,4141.6,4141.5,0.002]
[1759241426768,5.60652578,4141.6,4141.5,0.002]
[1759241426924,4.81452578,4141.6,4141.5,0.002]
[1759241427437,2.4,4141.6,4141.5,0.002]
[1759241427648,4.81452578,4141.6,4141.5,0.002]
[1759241428439,5.60652578,4141.6,4141.5,0.002]
[1759241431172,2.4,4141.6,4141.5,0.002]
[1759241431363,4.81452578,4141.6,4141.5,0.002]
[1759241432554,4.93532578,4141.6,4141.5,0.002]
[1759241433379,2.5208,4141.6,4141.5,0.002]
[1759241433561,2.4,4141.6,4141.5,0.002]
[1759241434262,4.81452578,4141.6,4141.5,0.002]
[1759241434577,2.4,4141.6,4141.5,0.002]
[1759241434780,0.1208,4142.0,4141.5,0.002]
[1759241435276,2.41452578,4141.6,4141.5,0.002]
[1759241435481,2.53532578,4141.6,4141.5,0.002]
[1759241436850,0.1208,4141.6,4141.5,0.002]
[1759241437051,0.1208,4142.0,4141.5,0.002]
[1759241437481,0.1208,4143.1,4142.3,2.41407326]
[1759241437698,0.1208,4143.1,4142.4,2.41403938]
[1759241437908,0.12155241,4143.7,4142.6,0.1208]
[1759241438201,2.41336082,4143.6,4143.0,0.1208]
[1759241438367,2.41340145,4143.6,4143.3,0.1208]
[1759241438568,0.001,4143.8,4143.3,0.1208]
[1759241438779,2.41341035,4143.6,4143.3,0.1208]
[1759241439197,0.001,4143.8,4143.3,0.1208]
[1759241439403,2.41369465,4143.1,4142.5,0.1208]
[1759241439599,0.1208,4143.1,4142.5,0.1208]
[1759241439801,2.4,4143.6,4142.6,0.02413942]
[1759241440008,2.53417913,4143.6,4143.0,0.1208]
[1759241440173,0.1208,4143.6,4143.0,0.1208]
[1759241440372,0.1208,4143.6,4141.7,0.4813442]
[1759241440373,2.41367838,4143.1,4142.8,0.1208]
[1759241440774,2.41366318,4143.1,4142.8,0.1208]
[1759241441000,2.41358328,4143.3,4142.8,0.1208]
[1759241441203,2.53421005,4143.6,4142.8,0.1208]
[1759241441204,0.1208,4143.6,4142.8,0.1208]
[1759241441402,0.1208,4143.6,4142.9,2.41376387]
[1759241441604,0.001,4143.8,4143.3,0.1208]
[1759241441900,2.41428813,4143.8,4143.3,0.1208]
[1759241442106,2.401,4143.8,4143.3,0.1208]
[1759241442401,2.4,4143.7,4143.3,0.1208]
[1759241442602,2.401,4143.8,4143.3,0.1208]
[1759241442901,2.41347685,4143.4,4143.3,0.1208]
[1759241443309,0.001,4143.6,4143.3,0.1208]
[1759241443474,2.41438352,4143.6,4143.3,0.1208]
[1759241443674,2.41436398,4143.6,4143.3,0.1208]
[1759241443875,2.41347685,4143.4,4143.3,0.1208]
[1759241444403,0.001,4143.6,4143.3,0.1208]
[1759241444608,2.41347685,4143.4,4143.3,0.1208]
[1759241445101,2.4137656,4143.0,4142.8,0.1228]
[1759241445306,0.1208,4143.4,4142.8,0.1228]
[1759241445307,2.41358104,4143.3,4142.8,0.1228]
[1759241445477,2.41374947,4143.0,4142.8,0.1228]
[1759241445674,0.1208,4143.4,4142.8,0.1228]
[1759241446010,2.4135351,4143.3,4142.8,0.1228]
[1759241446206,2.41376813,4142.9,4142.8,0.1228]
[1759241446611,2.4135351,4143.3,4142.8,0.1228]
[1759241446777,2.41376813,4142.9,4142.8,0.1228]
[1759241447195,2.41376813,4142.9,4142.8,0.002]
[1759241448876,7.70976813,4142.9,4142.8,0.002]
[1759241449075,8.22144202,4142.9,4142.8,0.002]
[1759241449281,9.01344202,4142.9,4142.8,0.002]
[1759241450675,6.59967389,4142.9,4142.3,1e-08]
[1759241450877,22.82426237,4142.4,4142.3,1e-08]
[1759241451196,5.60629261,4142.0,4141.9,0.002]
[1759241451510,8.50129261,4142.0,4141.9,0.002]
[1759241451677,9.0129665,4142.0,4141.9,0.002]
[1759241453729,5.3259665,4142.0,4141.9,0.002]
[1759241454026,4.81429261,4142.0,4141.9,0.002]
[1759241454796,5.60629261,4142.0,4141.9,0.002]
[1759241454999,6.11755344,4142.0,4141.9,0.002]
[1759241457029,2.4,4142.0,4141.9,0.002]
[1759241457325,2.41429261,4142.0,4141.9,0.002]
[1759241460723,2.41424219,4142.1,4141.9,0.002]
[1759241460927,0.1208,4142.6,4141.9,0.1228]
[1759241461127,2.41394338,4142.6,4141.9,0.1228]
[1759241461298,2.41399535,4142.6,4142.2,0.1208]
[1759241461505,2.41389061,4142.7,4142.2,0.1208]
[1759241461740,2.91164503,4143.2,4142.2,0.1208]
[1759241461937,2.41386144,4142.8,4142.4,0.1208]
[1759241462141,0.1208,4143.0,4142.4,0.1208]
[1759241462349,2.4,4143.2,4142.4,0.1208]
[1759241462502,2.41365161,4143.1,4142.4,0.1208]
[1759241462716,0.63244503,4143.2,4142.4,0.2535034]
[1759241463013,0.1208,4143.4,4142.8,0.1208]
[1759241463215,0.001,4143.6,4142.9,2.4379057]
[1759241463428,0.001,4143.6,4143.4,0.1208]
[1759241463628,0.001,4143.6,4143.5,2.43755278]
[1759241463865,0.001,4143.6,4143.5,2.91060659]
[1759241464050,0.001,4143.6,4143.5,3.05554077]
[1759241464360,0.001,4143.6,4143.5,3.03140659]
[1759241464718,0.001,4143.6,4143.5,6.10260659]
[1759241465049,0.001,4143.6,4143.5,6.22340659]
[1759241465350,0.001,4144.3,4144.2,5.60501095]
[1759241465551,0.001,4144.3,4144.2,9.30082125]
[1759241465850,0.001,4144.3,4144.2,9.42162125]
[1759241466035,0.001,4144.3,4144.2,6.52762125]
[1759241466225,0.001,4144.3,4144.2,9.42162125]
[1759241466621,0.001,4144.3,4144.2,9.42062125]
[1759241466966,0.001,4144.3,4144.2,5.73562125]
[1759241467146,0.001,4144.3,4144.2,8.62862125]
[1759241468330,0.001,4144.3,4144.2,9.42062125]
[1759241468932,0.001,4144.3,4144.2,6.52762125]
[1759241469255,0.001,4144.3,4144.2,9.41962125]
[1759241471131,0.001,4144.3,4144.2,5.61482125]
[1759241471331,0.001,4144.3,4144.2,8.50682125]
[1759241472950,0.001,4144.3,4144.2,9.29882125]
[1759241474469,0.001,4144.3,4144.2,9.29782125]
[1759241474670,0.001,4144.3,4144.2,5.61482125]
[1759241474828,0.001,4144.3,4143.1,0.49331868]
[1759241475165,0.001,4144.3,4143.0,2.41370521]
[1759241475362,0.001,4144.3,4143.6,2.41331706]
[1759241475572,0.001,4144.3,4143.7,2.891]
[1759241475863,0.001,4144.3,4144.1,2.4130124]
[1759241476241,0.001,4144.3,4143.8,5.30420276]
[1759241476542,0.001,4144.3,4143.9,5.30417796]
[1759241476743,0.001,4144.3,4144.0,2.91513127]
[1759241476948,0.001,4144.3,4144.2,2.41301095]
[1759241477146,0.001,4144.3,4144.2,2.43714105]
[1759241477884,0.001,4144.3,4144.2,2.41301095]
[1759241478040,0.001,4144.3,4144.0,0.53282631]
[1759241478369,0.001,4144.3,4144.2,2.41301095]
[1759241478737,0.001,4144.3,4144.2,5.62914105]
[1759241478933,0.001,4144.3,4144.2,5.60501095]
[1759241480137,0.001,4144.3,4144.2,8.49501095]
[1759241481255,0.001,4144.3,4144.2,5.72581095]
[1759241481458,0.001,4144.3,4144.2,9.4297009]
[1759241481869,0.001,4144.3,4144.2,5.7477009]
[1759241482170,0.001,4144.3,4144.2,8.6377009]
[1759241482370,0.001,4144.3,4144.2,3.33468995]
[1759241482570,0.001,4144.3,4144.2,3.82468995]
[1759241482785,0.001,4144.3,4144.2,5.42381095]
[1759241482973,0.001,4144.3,4144.2,3.0108]
[1759241483301,0.001,4144.3,4144.2,0.1208]
[1759241483677,0.001,4144.3,4144.2,3.0098]
[1759241484066,0.001,4144.3,4144.2,5.42281095]
[1759241484264,0.001,4144.3,4144.2,3.79359329]
[1759241484487,0.001,4144.3,4144.2,3.0098]
[1759241484858,0.001,4144.3,4144.2,5.42281095]
[1759241485486,0.001,4144.3,4144.2,8.61481095]
[1759241486796,0.001,4145.2,4144.8,0.792]
[1759241486982,0.001,4145.2,4145.0,2.41254523]
[1759241487288,0.001,4145.2,4145.1,3.02184155]
[1759241487918,0.001,4145.2,4145.1,5.42184155]
[1759241488088,0.001,4145.2,4145.1,9.10284155]
[1759241488808,0.001,4145.2,4145.1,8.31084155]
[1759241489604,0.001,4145.2,4145.1,8.30984155]
[1759241490407,0.001,4145.2,4145.1,9.10184155]
[1759241493803,0.001,4145.2,4145.1,6.21384155]
[1759241494112,0.001,4145.2,4145.1,9.10184155]
[1759241494889,2.41105836,4147.6,4145.1,9.10184155]
[1759241494890,0.50951631,4147.3,4146.2,2.41184699]
[1759241495095,2.41096216,4147.8,4146.2,5.54003169]
[1759241495301,0.51217897,4147.9,4146.2,3.1281847]
[1759241495505,17.21820289,4148.3,4144.4,2.4]
[1759241495506,2.41138816,4147.0,4145.4,2.4]
[1759241495702,2.41154657,4146.8,4145.1,0.60935452]
[1759241495914,2.41139698,4147.0,4145.3,2.4]
[1759241496122,2.41152812,4146.8,4144.4,2.41288521]
[1759241496283,0.51217897,4146.7,4145.2,2.41242785]
[1759241496484,2.41196235,4146.1,4145.3,2.887]
[1759241496696,2.41196944,4146.0,4145.3,2.887]
[1759241496913,0.001,4146.3,4145.9,0.1208]
[1759241497082,0.001,4146.3,4146.0,2.887]
[1759241497282,2.41186164,4146.2,4145.9,0.1208]
[1759241497484,2.41190943,4146.1,4146.0,2.323]
[1759241498033,2.41279078,4146.3,4143.7,0.002]
[1759241498034,2.4,4146.2,4143.7,0.002]
[1759241498324,2.41237063,4145.3,4145.2,0.1208]
[1759241498484,2.41237063,4145.3,4145.2,2.3808]
[1759241498686,2.4,4145.4,4144.2,2.41300605]
[1759241498950,2.4,4145.6,4144.9,0.1208]
[1759241499220,2.41216048,4145.7,4145.3,0.1208]
[1759241499422,0.51217897,4146.0,4145.4,2.774]
[1759241499729,2.41195635,4146.1,4145.5,3.0068]
[1759241499897,0.001,4146.3,4145.5,2.886]
[1759241500247,0.001,4146.3,4146.0,0.1208]
[1759241500526,2.41279718,4146.3,4146.0,0.1208]
[1759241500733,2.41190516,4146.1,4146.0,0.1208]
[1759241500916,0.001,4146.3,4145.9,2.886]
[1759241501415,0.001,4146.3,4146.2,0.1208]
[1759241501798,0.001,4146.3,4145.6,2.41219273]
[1759241501799,0.001,4146.3,4146.0,2.886]
[1759241502116,0.001,4146.3,4146.0,5.41875661]
[1759241502294,0.001,4146.3,4146.0,3.0068]
[1759241502616,2.41184699,4146.2,4146.0,2.886]
[1759241502793,0.1218,4146.3,4146.0,2.886]
[1759241503216,2.53359339,4146.3,4146.0,2.886]
[1759241503386,2.53360697,4146.3,4146.0,2.886]
[1759241503588,0.1218,4146.3,4146.0,2.886]
[1759241503787,0.001,4146.3,4146.0,2.886]
[1759241504100,0.001,4146.3,4146.1,0.1208]
[1759241504418,0.001,4146.3,4146.2,2.55676545]
[1759241504618,0.001,4146.3,4146.2,3.31811862]
[1759241504790,0.001,4146.3,4146.2,3.34223708]
[1759241504991,0.001,4146.3,4146.2,3.31811862]
[1759241505186,0.001,4146.3,4146.2,6.20411862]
[1759241505729,0.001,4146.3,4146.2,3.81242139]
[1759241505910,0.001,4146.3,4146.2,6.69842139]
[1759241506286,0.001,4146.3,4146.2,3.31811862]
[1759241506502,0.001,4146.3,4146.2,5.41864699]
[1759241507027,0.001,4146.3,4146.2,2.53264699]
[1759241507205,0.001,4146.3,4146.2,5.41864699]
[1759241508704,0.001,4146.3,4146.2,5.41764699]
[1759241509393,0.001,4146.3,4146.2,5.29684699]
[1759241509590,0.001,4146.3,4146.2,6.06772678]
[1759241509795,0.001,4146.3,4146.2,5.29684699]
[1759241510098,0.001,4146.3,4143.3,2.547]
[1759241510420,0.001,4146.3,4143.9,4.73116636]
[1759241510720,0.001,4146.3,4145.7,2.41209618]
[1759241510921,2.41279658,4146.3,4145.8,2.885]
[1759241511300,2.41280354,4146.3,4145.9,2.885]
[1759241511529,2.41190301,4146.2,4146.0,2.885]
[1759241511924,2.41280888,4146.3,4146.0,2.885]
[1759241512227,2.41184699,4146.2,4144.1,0.49457118]
[1759241512426,0.001,4146.3,4144.5,0.792]
[1759241512626,2.41211411,4145.8,4145.0,2.41253882]
[1759241512852,2.41199224,4146.0,4144.8,2.4126486]
[1759241513053,0.001,4146.3,4144.9,2.65384055]
[1759241513352,0.001,4146.3,4144.1,0.49457118]
[1759241513353,2.41216605,4145.7,4145.0,5.29752767]
[1759241513523,2.41199356,4146.0,4145.2,2.41242274]
[1759241513719,0.001,4146.3,4145.0,2.885]
[1759241513931,0.001,4146.3,4144.1,0.49457118]
[1759241514129,0.792,4145.9,4144.2,5.29695946]
[1759241514331,2.41249557,4145.1,4144.2,2.884]
[1759241514652,2.41255319,4145.0,4144.2,5.29700529]
[1759241515039,0.51217897,4145.7,4144.4,2.41284983]
[1759241515354,2.41248708,4145.1,4144.4,2.41284983]
[1759241515522,0.51217897,4145.9,4144.2,2.884]
[1759241515722,2.4,4146.1,4144.3,0.2886]
[1759241516024,2.41220157,4145.6,4144.8,2.41261997]
[1759241516220,2.41207203,4145.9,4145.1,2.41243906]
[1759241516452,2.41208223,4145.8,4145.1,2.41243906]
[1759241516620,2.41279853,4146.3,4144.9,2.884]
[1759241516821,0.001,4146.3,4145.0,2.884]
[1759241517037,2.41184699,4146.2,4145.1,2.884]
[1759241517222,0.793,4146.3,4145.1,2.884]
[1759241517428,2.41213918,4145.7,4145.1,2.884]
[1759241517651,2.4,4146.2,4145.1,2.884]
[1759241517652,2.4122201,4145.6,4145.1,2.884]
[1759241517830,2.41222003,4145.6,4145.1,2.884]
[1759241518355,2.41206494,4145.9,4145.1,5.29642883]
[1759241518556,2.41192816,4146.1,4145.2,0.02412428]
[1759241518771,2.41213834,4145.7,4144.3,0.2886]
[1759241518935,2.41198533,4146.0,4145.0,2.41250015]
[1759241519261,2.41215467,4145.7,4145.1,2.884]
[1759241519434,0.1208,4146.0,4145.4,0.1208]
[1759241519761,2.41209423,4145.8,4145.4,0.1208]
[1759241519958,2.5208,4146.0,4145.4,0.1208]
[1759241520271,2.4118867,4146.2,4145.7,0.1208]
[1759241520569,2.4118867,4146.2,4145.1,2.884]
[1759241520570,0.001,4146.3,4146.2,2.41184699]
[1759241520863,0.001,4146.3,4146.2,5.29584699]
[1759241521156,0.001,4146.3,4146.2,5.41664699]
[1759241523731,0.001,4146.3,4146.2,0.1208]
[1759241524255,0.001,4146.3,4146.2,2.4358]
[1759241524454,2.41278882,4146.3,4146.2,0.1208]
[1759241524650,2.41278882,4146.3,4144.2,2.41298999]
[1759241524651,0.001,4146.3,4144.2,2.41298999]
[1759241524851,2.41190516,4146.1,4146.0,0.1208]
[1759241525053,2.41190516,4146.1,4146.0,2.7758]
[1759241525367,2.41190516,4146.1,4146.0,0.1208]
[1759241526475,0.001,4146.3,4146.0,0.1208]
[1759241526933,0.001,4146.3,4146.2,2.41184699]
[1759241527663,0.001,4146.3,4146.2,2.883]
[1759241527881,0.001,4146.3,4146.2,5.29484699]
[1759241528938,0.001,4146.3,4146.2,2.883]
[1759241529138,0.001,4146.3,4146.2,5.29484699]
[1759241529333,0.001,4146.3,4146.2,5.86644969]
[1759241529562,0.001,4146.3,4146.2,3.4546027]
[1759241529738,0.001,4146.3,4146.2,0.5716027]
[1759241530068,0.001,4146.3,4146.2,5.29484699]
[1759241531363,0.001,4146.3,4146.2,7.69484699]
[1759241533070,0.001,4146.3,4146.2,8.48684699]
[1759241533373,0.001,4146.3,4146.2,8.48584699]
[1759241533962,0.001,4146.3,4146.2,7.69384699]
[1759241534167,0.001,4146.3,4146.2,8.7523888]
[1759241534346,0.001,4146.3,4146.2,5.8703888]
[1759241534545,0.001,4146.3,4146.2,8.7523888]
[1759241536485,0.001,4146.3,4146.2,9.5443888]
[1759241538174,0.001,4146.3,4146.2,6.6623888]
[1759241538667,0.001,4146.3,4146.2,11.8613888]
[1759241539470,0.001,4149.8,4148.2,2.41062613]
[1759241539670,2.40981521,4149.7,4148.3,3.12206261]
[1759241539973,2.41075956,4149.8,4149.0,2.41016134]
[1759241540148,2.41075956,4149.8,4149.4,0.1208]
[1759241540149,0.001,4149.8,4149.4,0.1208]
[1759241540348,0.001,4149.8,4149.7,0.1208]
[1759241540556,0.001,4149.8,4149.7,3.0018]
[1759241540751,2.41075468,4149.8,4149.7,3.0018]
[1759241541053,0.001,4149.8,4149.7,3.0018]
[1759241541255,0.001,4149.8,4147.3,0.792]
[1759241541572,2.401,4149.8,4148.7,0.1208]
[1759241541873,2.41033551,4148.8,4147.7,2.41094534]
[1759241542073,2.41045171,4148.6,4148.5,0.1208]
[1759241542273,2.41033551,4148.8,4148.4,2.88]
[1759241542573,2.41021932,4149.0,4148.4,2.88]
[1759241542773,0.792,4149.5,4145.6,2.41215904]
[1759241542981,2.41027742,4148.9,4146.4,0.443]
[1759241543182,2.41068415,4148.2,4148.1,0.1208]
[1759241543386,2.41093445,4147.8,4147.0,2.41133811]
[1759241543561,2.41093445,4147.8,4147.1,2.52532333]
[1759241543762,2.41093445,4147.8,4147.7,0.1208]
[1759241543763,2.41091663,4147.8,4147.7,0.1208]
[1759241543965,2.41059612,4148.4,4147.7,3.0008]
[1759241544162,2.41078428,4148.1,4147.7,3.0008]
[1759241544368,2.41078428,4148.1,4147.7,2.88]
[1759241544682,0.1208,4148.7,4148.0,0.1208]
[1759241544883,2.4,4148.9,4148.0,0.1208]
[1759241545088,2.53070898,4149.6,4148.8,0.1208]
[1759241545256,2.41009065,4149.3,4148.9,2.88]
[1759241545589,2.41000321,4149.4,4148.9,2.88]
[1759241545782,2.41006587,4149.3,4149.2,0.1208]
[1759241545983,0.001,4149.8,4149.2,0.1208]
[1759241546356,0.001,4149.8,4149.7,0.1208]
[1759241546556,0.001,4149.8,4149.7,3.0008]
[1759241547066,0.001,4149.8,4149.7,2.88]
[1759241548056,0.001,4149.8,4149.3,2.41000526]
[1759241548284,0.001,4149.8,4149.4,2.879]
[1759241548485,0.001,4149.8,4149.4,5.28898553]
[1759241548686,0.001,4149.8,4149.4,2.879]
[1759241549768,0.001,4149.8,4149.7,2.40981275]
[1759241549969,0.001,4149.8,4149.7,2.43391087]
[1759241550180,0.001,4149.8,4149.7,5.28881275]
[1759241550970,0.001,4149.8,4149.7,2.879]
[1759241551283,0.001,4149.8,4149.2,0.48983049]
[1759241551594,0.001,4149.8,4149.7,2.40981275]
[1759241551793,0.001,4149.8,4149.7,2.89178303]
[1759241551971,0.001,4149.8,4149.7,8.16978303]
[1759241553191,0.001,4149.8,4149.7,2.4]
[1759241553392,0.001,4149.8,4149.7,2.878]
[1759241553705,0.001,4149.8,4147.4,2.41113737]
[1759241553890,0.001,4149.8,4147.5,5.195]
[1759241554196,0.001,4149.8,4147.4,2.41113737]
[1759241554197,2.40994785,4149.5,4148.7,2.41034846]
[1759241554394,0.001,4149.8,4148.8,2.878]
[1759241554774,0.001,4149.8,4147.6,0.76061374]
[1759241554989,2.4100672,4149.3,4147.7,1.161]
[1759241555311,2.41010527,4149.2,4147.8,2.4]
[1759241555461,2.41010527,4149.2,4147.4,0.48725215]
[1759241555462,0.001,4149.8,4147.4,0.48725215]
[1759241555809,2.41042365,4148.7,4147.9,2.41081365]
[1759241555973,2.4099289,4149.5,4148.0,0.453]
[1759241556167,2.41052275,4148.5,4148.0,0.453]
[1759241556500,2.41034272,4148.8,4148.1,2.41073593]
[1759241556799,2.41048269,4148.6,4148.0,0.453]
[1759241556964,2.41054215,4148.5,4148.0,0.453]
[1759241557164,2.41054215,4148.5,4147.1,0.792]
[1759241557367,2.41049075,4148.6,4148.4,0.1208]
[1759241557584,2.41050982,4148.5,4148.4,0.1208]
[1759241557789,2.41050982,4148.5,4148.4,2.9978]
[1759241558007,2.41043268,4148.7,4147.1,0.48598306]
[1759241558223,2.41043268,4148.7,4148.1,0.1208]
[1759241558224,2.41068415,4148.2,4148.1,0.1208]
[1759241558724,2.41091663,4147.8,4147.7,0.1208]
[1759241559082,2.41112309,4147.5,4143.2,1.01560154]
[1759241559285,2.41104478,4147.6,4147.4,0.1208]
[1759241559530,0.1208,4148.0,4147.4,0.1208]
[1759241559693,0.1208,4148.8,4147.6,2.41103288]
[1759241559898,0.001,4148.0,4147.9,0.1208]
[1759241560099,0.001,4148.0,4147.9,2.877]
[1759241560421,0.001,4148.0,4147.9,2.9978]
[1759241561421,2.41180038,4148.0,4147.9,0.1208]
[1759241561645,2.41180038,4148.0,4147.9,2.4338]
[1759241561923,2.41106099,4147.6,4145.6,2.41218484]
[1759241562098,0.001,4148.0,4147.7,0.1208]
[1759241562099,2.41093642,4147.8,4147.7,0.1208]
[1759241562298,2.41092478,4147.8,4147.5,2.624]
[1759241562624,2.41091663,4147.8,4147.7,0.1208]
[1759241562926,0.001,4148.0,4147.7,0.1208]
[1759241563522,2.41180429,4148.0,4147.7,0.1208]
[1759241564038,0.001,4148.0,4147.7,0.1208]
[1759241564600,0.001,4148.0,4147.2,0.47481487]
[1759241564601,19.59187146,4148.0,4145.9,0.002]
[1759241564814,2.41124724,4147.3,4146.4,0.003]
[1759241565110,2.4108585,4147.9,4146.4,0.003]
[1759241565430,0.001,4148.0,4146.5,2.43578482]
[1759241565634,0.001,4148.0,4146.4,0.795]
[1759241565833,0.001,4148.0,4147.9,2.4108585]
[1759241565996,0.001,4148.0,4147.9,5.2878585]
[1759241566429,0.001,4148.0,4147.9,6.0798585]